{"text_format":"1","workbook":"xlsx","n_sheets":4,"sheets":["sprawozdanie","sprawozdanie (2)","Dodaj arkusz","pomocniczy"],"not_rendered":{"charts":0,"images":0,"macros":1,"external_links":0,"defined_names":17,"comments":0,"pivot_tables":0},"unopened":[],"bounds":{"document_bytes":16777216,"sheet_cells":100000,"rows_first":2000,"rows_last":500,"rows_between":2000,"halvings":0,"cell_chars":16384,"cell_head_chars":4096},"cells_cut":0,"cells_raw":0,"read":"whole","date_system":"1900"}

{"sheet":"sprawozdanie","index":0,"n_rows":60,"n_cols":9,"rows_kept":60,"cut":false,"hidden":true,"merged":[[13,2,13,4],[17,5,17,6],[13,5,13,6],[14,5,14,6],[17,7,17,8],[13,7,13,8],[14,7,14,8],[15,2,15,4],[16,2,16,4],[15,5,15,6],[16,5,16,6],[15,7,15,8],[16,7,16,8],[59,2,59,3],[48,0,48,3],[50,0,50,1],[50,2,50,8],[31,0,31,1],[33,0,33,1],[41,0,41,1],[56,1,56,8],[51,0,51,8],[49,0,49,5],[11,7,11,8],[12,7,12,8],[9,2,9,4],[9,5,9,6],[1,0,1,8],[10,2,10,4],[11,2,11,4],[10,5,10,6],[11,5,11,6],[3,0,3,2],[6,0,6,2],[6,3,6,8],[5,3,5,8],[28,5,29,5],[26,2,26,8],[22,2,22,4],[12,2,12,4],[28,6,29,6],[24,7,24,8],[22,5,22,6],[19,2,19,4],[24,5,24,6],[28,7,29,7],[22,7,22,8],[28,8,29,8],[23,7,23,8],[17,2,17,4],[12,5,12,6],[14,2,14,4],[28,0,29,0],[28,1,29,1],[28,2,28,3],[28,4,29,4],[18,5,18,6],[27,0,27,8],[23,2,23,4],[24,2,24,4],[20,7,20,8],[20,5,20,6],[23,5,23,6],[18,7,18,8],[19,7,19,8],[19,5,19,6],[18,2,18,4],[19,0,19,1],[0,7,0,8],[9,0,9,1],[11,0,11,1],[2,0,2,2],[2,3,2,5],[3,6,3,8],[3,3,3,4],[9,7,9,8],[8,2,8,4],[5,0,5,2],[4,0,4,2],[4,3,4,8],[7,0,7,8],[8,5,8,6],[8,7,8,8],[10,7,10,8],[26,0,26,1],[25,2,25,4],[25,5,25,6],[25,7,25,8],[20,2,20,4],[21,2,21,4],[21,5,21,6],[21,7,21,8]]}
[null,null,null,null,null,null,null,"FORMULARZ  NR 1"]
[" SPRAWOZDANIE  Z  REALIZACJI  PROJEKTU  INWESTYCYJNEGO"]
["Rodzaj sprawozdania",null,null,"-wybierz-"]
["Okres sprawozdawczy",null,null,"-wybierz-",null,"-wybierz-"]
["Nazwa projektu inwestycyjnego"]
["Kod projektu inwestycyjnego"]
["Dysponent "]
["        1. POSTĘP RZECZOWY PROJEKTU "]
["Lp.","Działania projektowe","Realizacja w okresie sprawozdawczym i uzyskane efekty rzeczowe",null,null,"Problemy związane z realizacją w okresie sprawozdawczym ",null,"Działania naprawcze"]
["ETAP 1.  Prace koncepcyjne"]
["1.1","Koncepcja programowo-przestrzenna / Studium wykonalności / wstępny szacunek kosztów"]
["ETAP 2.  Prace przygotowawcze, w tym:"]
["2.1","Decyzje administracyjne, w tym:"]
["`2.1.1","Decyzja o środowiskowych uwarunkowaniach"]
["`2.1.2","Podstawa planowania i zagospodarowania terenu"]
["`2.1.3","Prawomocna decyzja o pozwoleniu na budowę lub równoważna"]
["`2.1.4","Inne niezbędne decyzje"]
["2.2","Dokumentacja projektowa"]
["2.3","Nabycie nieruchomości"]
["ETAP  3.  Realizacja projektu"]
["3.1","Przetargi na realizację projektu "]
["3.2","Prace budowlano-montażowe"]
["3.3","Nadzór autorski"]
["3.4","Nadzór inwestorski"]
["3.5","Zakupy pierwszego wyposażenia"]
["3.6","Inne wydatki"]
["Uwagi dot. postępu rzeczowego"]
["          2. POSTĘP FINANSOWY PROJEKTU "]
["Lp.","Działania projektowe","Zatwierdzony okres realizacji projektu\n(WPF)",null,"Planowana \ncałkowita wysokość wydatków \n(WPF)","Kwota wydatków z poprzednich okresów sprawozdawczych (narastająco)\n","Wydatki poniesione w okresie sprawozdawczym","Suma dotychczas poniesionych wydatków","% wykonania"]
[null,null,"Rozpoczęcie\n(rrrr-mm)","Zakończenie\n(rrrr-mm)"]
[1,2,3,4,5,6,7," 8=6+7"," 9=8/5"]
["ETAP 1.  Prace koncepcyjne",null,null,null,{"$f":"SUM(E33)","v":0},{"$f":"SUM(F33)","v":0},0,{"$f":"F32+G32","v":0},{"$f":"H32/E32","v":{"$error":"#DIV/0!"}}]
["1.1","Koncepcja programowo-przestrzenna / Studium wykonalności / wstępny szacunek kosztów",null,null,null,null,null,{"$f":"F33+G33","v":0},{"$f":"H33/E33","v":{"$error":"#DIV/0!"}}]
["ETAP 2.  Prace przygotowawcze, w tym:",null,null,null,{"$f":"E35+E40+E41","v":0},{"$f":"SUM(F35:F41)","v":0},{"$f":"SUM(G35:G41)","v":0},0,{"$error":"#DIV/0!"}]
["2.1","Decyzje administracyjne, w tym:",null,null,{"$f":"SUM(E36:E39)","v":0},null,null,{"$f":"F35+G35","v":0},{"$f":"H35/E35","v":{"$error":"#DIV/0!"}}]
["`2.1.1","Decyzja o środowiskowych uwarunkowaniach",null,null,null,null,null,{"$f":"F36+G36","v":0},{"$error":"#DIV/0!"}]
["`2.1.2","Podstawa planowania i zagospodarowania terenu",null,null,null,null,null,0,{"$error":"#DIV/0!"}]
["`2.1.3","Prawomocna decyzja o pozwoleniu na budowę lub równoważna",null,null,null,null,null,0,{"$error":"#DIV/0!"}]
["`2.1.4","Inne niezbędne decyzje",null,null,null,null,null,0,{"$error":"#DIV/0!"}]
["2.2","Dokumentacja projektowa",null,null,null,null,null,{"$f":"F40+G40","v":0},{"$f":"H40/E40","v":{"$error":"#DIV/0!"}}]
["2.3","Nabycie nieruchomości",null,null,null,null,null,{"$f":"F41+G41","v":0},{"$error":"#DIV/0!"}]
["ETAP  3.  Realizacja projektu",null,null,null,{"$f":"SUM(E43:E48)","v":0},{"$f":"SUM(F43:F48)","v":0},{"$f":"SUM(G43:G48)","v":0},0,{"$error":"#DIV/0!"}]
["3.1","Przetargi na realizację projektu ",null,null,null,null,null,0,{"$error":"#DIV/0!"}]
["3.2","Prace budowlano-montażowe",null,null,null,null,null,0,{"$error":"#DIV/0!"}]
["3.3","Nadzór autorski",null,null,null,null,null,0,{"$error":"#DIV/0!"}]
["3.4","Nadzór inwestorski",null,null,null,null,null,0,{"$error":"#DIV/0!"}]
["3.5","Zakupy pierwszego wyposażenia",null,null,null,null,null,0,{"$error":"#DIV/0!"}]
["3.6","Inne wydatki",null,null,null,null,null,0,{"$error":"#DIV/0!"}]
["SUMA",null,null,null,{"$f":"E42+E34+E32","v":0},{"$f":"F42+F34+F32","v":0},{"$f":"G42+G34+G32","v":0},{"$f":"G49+F49","v":0},{"$error":"#DIV/0!"}]
["PLAN WYDATKÓW \nNA KONIEC OKRESU SPRAWOZDAWCZEGO",null,null,null,null,null,null,"% WYKONANIA \nW OKRESIE SPRAWOZDAWCZYM",{"$f":"G49/G50","v":{"$error":"#DIV/0!"}}]
["Uwagi dot. postępu finansowego"]
["         3. WSKAŹNIKI REALIZACJI PROJEKTU "]
["Lp.","Kategoria interwencji","Nazwa wskaźnika","Jednostka miary wskaźnika","Wartość bazowa przed rozpoczęciem realizacji","Wartość docelowa wskaźnika","Wartość wskaźnika osiągnięta od początku realizacji projektu","% realizacji","Źródło weryfikacji danych"]
["1.","-wybierz-","-wybierz-",null,null,null,null,{"$f":"G54/F54","v":{"$error":"#DIV/0!"}}]
["2.","-wybierz-","-wybierz-",null,null,null,null,{"$f":"G55/F55","v":{"$error":"#DIV/0!"}}]
["3.","-wybierz-","-wybierz-",null,null,null,null,{"$f":"G56/F56","v":{"$error":"#DIV/0!"}}]
[]
[]
[null,"Sporządził:",null,null,null,"Dysponent: "]
[null,null,"(Imię, Nazwisko, dane kontaktowe)",null,null,"Data:"]

{"sheet":"sprawozdanie (2)","index":1,"n_rows":60,"n_cols":9,"rows_kept":60,"cut":false,"hidden":false,"merged":[[50,0,50,1],[50,2,50,8],[51,0,51,8],[56,1,56,8],[59,2,59,3],[49,0,49,5],[26,0,26,1],[26,2,26,8],[27,0,27,8],[28,0,29,0],[28,1,29,1],[28,2,28,3],[28,4,29,4],[28,5,29,5],[28,6,29,6],[28,7,29,7],[28,8,29,8],[31,0,31,1],[33,0,33,1],[41,0,41,1],[48,0,48,3],[24,2,24,4],[24,5,24,6],[24,7,24,8],[25,2,25,4],[25,5,25,6],[25,7,25,8],[22,2,22,4],[22,5,22,6],[22,7,22,8],[23,2,23,4],[23,5,23,6],[23,7,23,8],[20,2,20,4],[20,5,20,6],[20,7,20,8],[21,2,21,4],[21,5,21,6],[21,7,21,8],[18,2,18,4],[18,5,18,6],[18,7,18,8],[19,0,19,1],[19,2,19,4],[19,5,19,6],[19,7,19,8],[16,2,16,4],[16,5,16,6],[16,7,16,8],[17,2,17,4],[17,5,17,6],[17,7,17,8],[14,2,14,4],[14,5,14,6],[14,7,14,8],[15,2,15,4],[15,5,15,6],[15,7,15,8],[12,2,12,4],[12,5,12,6],[12,7,12,8],[13,2,13,4],[13,5,13,6],[13,7,13,8],[10,2,10,4],[10,5,10,6],[10,7,10,8],[11,0,11,1],[11,2,11,4],[11,5,11,6],[11,7,11,8],[7,0,7,8],[8,2,8,4],[8,5,8,6],[8,7,8,8],[9,0,9,1],[9,2,9,4],[9,5,9,6],[9,7,9,8],[4,0,4,2],[4,3,4,8],[5,0,5,2],[5,3,5,8],[6,0,6,2],[6,3,6,8],[0,7,0,8],[1,0,1,8],[2,0,2,2],[2,3,2,5],[3,0,3,2],[3,3,3,4],[3,6,3,8]]}
[null,null,null,null,null,null,null,"FORMULARZ  NR 3"]
[" SPRAWOZDANIE  Z  REALIZACJI  PROJEKTU  INWESTYCYJNEGO"]
["Rodzaj sprawozdania",null,null,"-wybierz-"]
["Okres sprawozdawczy",null,null,"-wybierz-",null,"-wybierz-"]
["Nazwa projektu inwestycyjnego"]
["Kod projektu inwestycyjnego"]
["Dysponent "]
["        1. POSTĘP RZECZOWY PROJEKTU "]
["Lp.","Działania projektowe","Realizacja w okresie sprawozdawczym i uzyskane efekty rzeczowe",null,null,"Problemy związane z realizacją w okresie sprawozdawczym ",null,"Działania naprawcze"]
["ETAP 1.  Prace koncepcyjne"]
["1.1","Koncepcja programowo-przestrzenna / Studium wykonalności / wstępny szacunek kosztów"]
["ETAP 2.  Prace przygotowawcze, w tym:"]
["2.1","Decyzje administracyjne, w tym:"]
["`2.1.1","Decyzja o środowiskowych uwarunkowaniach"]
["`2.1.2","Podstawa planowania i zagospodarowania terenu"]
["`2.1.3","Prawomocna decyzja o pozwoleniu na budowę lub równoważna"]
["`2.1.4","Inne niezbędne decyzje"]
["2.2","Dokumentacja projektowa"]
["2.3","Nabycie nieruchomości"]
["ETAP  3.  Realizacja projektu"]
["3.1","Przetargi na realizację projektu "]
["3.2","Prace budowlano-montażowe"]
["3.3","Nadzór autorski"]
["3.4","Nadzór inwestorski"]
["3.5","Zakupy pierwszego wyposażenia"]
["3.6","Inne wydatki"]
["Uwagi dot. postępu rzeczowego"]
["          2. POSTĘP FINANSOWY PROJEKTU "]
["Lp.","Działania projektowe","Zatwierdzony okres realizacji projektu\n(WPF)",null,"Planowana \ncałkowita wysokość wydatków \n(WPF)","Kwota wydatków z poprzednich okresów sprawozdawczych (narastająco)\n","Wydatki poniesione w okresie sprawozdawczym","Suma dotychczas poniesionych wydatków","% wykonania"]
[null,null,"Rozpoczęcie\n(rrrr-mm)","Zakończenie\n(rrrr-mm)"]
[1,2,3,4,5,6,7," 8=6+7"," 9=8/5"]
["ETAP 1.  Prace koncepcyjne",null,null,null,{"$f":"SUM(E33)","v":0},{"$f":"SUM(F33)","v":0},0,{"$f":"F32+G32","v":0},{"$f":"H32/E32","v":{"$error":"#DIV/0!"}}]
["1.1","Koncepcja programowo-przestrzenna / Studium wykonalności / wstępny szacunek kosztów",null,null,null,null,null,{"$f":"F33+G33","v":0},{"$f":"H33/E33","v":{"$error":"#DIV/0!"}}]
["ETAP 2.  Prace przygotowawcze, w tym:",null,null,null,{"$f":"E35+E40+E41","v":0},{"$f":"SUM(F35:F41)","v":0},{"$f":"SUM(G35:G41)","v":0},0,{"$error":"#DIV/0!"}]
["2.1","Decyzje administracyjne, w tym:",null,null,{"$f":"SUM(E36:E39)","v":0},null,null,{"$f":"F35+G35","v":0},{"$error":"#DIV/0!"}]
["`2.1.1","Decyzja o środowiskowych uwarunkowaniach",null,null,null,null,null,{"$f":"F36+G36","v":0},{"$error":"#DIV/0!"}]
["`2.1.2","Podstawa planowania i zagospodarowania terenu",null,null,null,null,null,0,{"$error":"#DIV/0!"}]
["`2.1.3","Prawomocna decyzja o pozwoleniu na budowę lub równoważna",null,null,null,null,null,0,{"$error":"#DIV/0!"}]
["`2.1.4","Inne niezbędne decyzje",null,null,null,null,null,0,{"$error":"#DIV/0!"}]
["2.2","Dokumentacja projektowa",null,null,null,null,null,{"$f":"F40+G40","v":0},{"$f":"H40/E40","v":{"$error":"#DIV/0!"}}]
["2.3","Nabycie nieruchomości",null,null,null,null,null,{"$f":"F41+G41","v":0},{"$error":"#DIV/0!"}]
["ETAP  3.  Realizacja projektu",null,null,null,{"$f":"SUM(E43:E48)","v":0},{"$f":"SUM(F43:F48)","v":0},{"$f":"SUM(G43:G48)","v":0},0,{"$error":"#DIV/0!"}]
["3.1","Przetargi na realizację projektu ",null,null,null,null,null,0,{"$error":"#DIV/0!"}]
["3.2","Prace budowlano-montażowe",null,null,null,null,null,0,{"$error":"#DIV/0!"}]
["3.3","Nadzór autorski",null,null,null,null,null,0,{"$error":"#DIV/0!"}]
["3.4","Nadzór inwestorski",null,null,null,null,null,0,{"$error":"#DIV/0!"}]
["3.5","Zakupy pierwszego wyposażenia",null,null,null,null,null,0,{"$error":"#DIV/0!"}]
["3.6","Inne wydatki",null,null,null,null,null,0,{"$error":"#DIV/0!"}]
["SUMA",null,null,null,{"$f":"E42+E34+E32","v":0},{"$f":"F42+F34+F32","v":0},{"$f":"G42+G34+G32","v":0},{"$f":"G49+F49","v":0},{"$error":"#DIV/0!"}]
["PLAN WYDATKÓW \nNA KONIEC OKRESU SPRAWOZDAWCZEGO",null,null,null,null,null,null,"% WYKONANIA \nW OKRESIE SPRAWOZDAWCZYM",{"$f":"G49/G50","v":{"$error":"#DIV/0!"}}]
["Uwagi dot. postępu finansowego"]
["         3. WSKAŹNIKI REALIZACJI PROJEKTU "]
["Lp.","Kategoria interwencji","Nazwa wskaźnika","Jednostka miary wskaźnika","Wartość bazowa przed rozpoczęciem realizacji","Wartość docelowa wskaźnika","Wartość wskaźnika osiągnięta od początku realizacji projektu","% realizacji","Źródło weryfikacji danych"]
["1.","-wybierz-","-wybierz-",null,null,null,null,{"$f":"G54/F54","v":{"$error":"#DIV/0!"}}]
["2.","-wybierz-","-wybierz-",null,null,null,null,{"$f":"G55/F55","v":{"$error":"#DIV/0!"}}]
["3.","-wybierz-","-wybierz-",null,null,null,null,{"$f":"G56/F56","v":{"$error":"#DIV/0!"}}]
[]
[]
[null,"Sporządził:",null,null,null,"Dysponent: "]
[null,null,"(Imię, Nazwisko, dane kontaktowe)",null,null,"Data:"]

{"sheet":"Dodaj arkusz","index":2,"n_rows":0,"n_cols":0,"rows_kept":0,"cut":false,"hidden":false,"merged":[]}

{"sheet":"pomocniczy","index":3,"n_rows":69,"n_cols":18,"rows_kept":69,"cut":false,"hidden":true,"merged":[]}
[null,null,"-wybierz-","-wybierz-",null,"wskaźniki realizacji projektu"]
[null,null,2019,null,null,"-wybierz-",null,null,null,"-wybierz-"]
[null,null,2020,null,null,"Liczba zakupionego sprzętu  (szt.)",null,null,null,"MIESIĘCZNE"]
[null,null,2021,null,null,"Liczba wybudowanych / zmodernizowanych obiektów kubaturowych (szt.)",null,null,null,"PÓŁROCZNE"]
[null,null,2022,null,null,"Powierzchnia całkowita wybudowanych/zmodernizowanych obiektów (m2)",null,null,null,"ROCZNE"]
["-wybierz-",null,2023,null,null,"Liczba planowanych do budowy oddziałów szkolnych (szt.)",null,null,null,"KOŃCOWE"]
[1,null,2024,null,null,"Liczba planowanych do budowy oddziałów przedszkolnych (szt.)"]
[2,null,2025,null,null,"Liczba przewiedzialnych uczniów w szkole / przedszkolu (osoby)"]
[3,null,"CAŁKOWITY  OKRES  REALIZACJI  PROJEKTU",null,null,"Długość wybudowanych/przebudowanych dróg (m)"]
[4,null,null,null,null,"Długość wybudowanych/przebudowanych chodników (m)"]
[5,null,null,null,null,"Długość wybudowanych/zmodernizowanych ścieżek rowerowych (m)"]
[null,null,null,null,null,"Liczba wybudowanych /zmodernizowanych przejść dla pieszych (szt.)"]
[null,null,null,null,null,"Liczba wybudowanych/zmodernizowanych skrzyżowań (szt.)"]
["-wybierz-",null,null,null,null,"Liczba zakupionych /zmodernizowanych jednostek taboru przewozu pasażerskiego (szt.)"]
["STYCZEŃ",null,null,null,null,"Pojemność jednostek zakupionego taboru komunikacji miejskiej (osoby)"]
["LUTY",null,null,null,null,"Długość nowoutworzonych/zmodernizowanych  linii autobusowych (m)"]
["MARZEC",null,null,null,null,"Długość wybudowanej/zmodernizowanej sieci transportu szynowego (m)"]
["KWIECIEŃ",null,null,null,null,"Liczba wybudowanych systemów sygnalizacji ulicznej (szt.)"]
["MAJ",null,null,null,null,"Liczba wybudowanych/zmodernizowanych przystanków komunikacji miejskiej (szt.)"]
["LIPIEC",null,null,null,null,"Liczba wybudowanych / zmodernizowanych zatok autobusowych (szt.)"]
["SIERPIEŃ",null,null,null,null,"Liczba osób korzystających z komunikacji miejskiej (osoby/rok)"]
["WRZESIEŃ",null,null,null,null,"Ilość zaoszczędzonej energii w wyniku realizacji projektów termomodernizacyjnych (GJ/rok)"]
["PAŹDZIERNIK",null,null,null,null,"inny - wskazany  przez Wnioskodawcę w kolumnie 3"]
["LISTOPAD"]
["I  PÓŁROCZE "]
["ROK"]
["KOŃCOWE"]
[]
["-wybierz-","-wybierz-",null,null,null,null,null,null,null,null,"-wybierz-","a.Transport_miejski","b.Drogi","c.Obiekt_kubaturowy","d.Infrastruktura","e.Sprzęt_i_wyposażenie","f.Termomodernizacja","g.Inne"]
[null,null,null,null,null,null,null,null,null,null,null,"-wybierz-","-wybierz-","-wybierz-","-wybierz-","-wybierz-","-wybierz-","-wybierz-"]
["1. Transport","1.1 Liczba osób korzystających z komunikacji miejskiej (osoby/rok)",null,null,null,null,null,null,null,null,null,"a1.Liczba osób korzystających z komunikacji miejskiej (osoby/rok)","b1.Długość wybudowanych/przebudowanych dróg (m)","c1.Liczba wybudowanych / zmodernizowanych obiektów kubaturowych (szt.)","d1.Długość wybudowanej / zmodernizowanej sieci infrastruktury technicznej: wodociągi, kanalizacja itp. (m)","e1.Liczba zakupionego sprzetu (szt.)","f1.Ilość zaoszczędzonej energii w wyniku realizacji projektów termomodernizacyjnych (GJ/rok)","g1.Inny - charakterystyczny dla projektu, opis w dodatkowych informacjach"]
["2. Drogi","1.2 Długość nowoutworzonych/zmodernizowanych  linii autobusowych (m)",null,null,null,null,null,null,null,null,null,"a2.Długość nowoutworzonych/zmodernizowanych  linii autobusowych (m)","b2.Długość wybudowanych/zmodernizowanych ścieżek rowerowych (m)","c2.Kubatura wybudowanych / zmodernizowanych obiektów (m3)","d2.Liczba odbiorców wybudowanej / zmodernizowanej sieci infrastruktury technicznej: wodociągi, kanalizacja itp. (osoby)","e2.Powierzchnia wykupionego / pozyskanego gruntu / nieruchomości (m2)"]
["3. Kubatura","1.3 Długość wybudowanej/zmodernizowanej sieci transportu szynowego (m)",null,null,null,null,null,null,null,null,null,"a3.Długość wybudowanej/zmodernizowanej sieci transportu szynowego (m)","b3.Długość wybudowanych/przebudowanych chodników (m)","c3.Powierzchnia całkowita wybudowanych/zmodernizowanych obiektów (m2)","d3.Liczba osób korzystających z: punktów ładowania pojazdów / studni oligoceńskiej / systemów informatycznych / urządzeń dźwigowych itp. (osoby/rok) "]
["4. Infrastruktura","1.4 Liczba zakupionych /zmodernizowanych jednostek taboru przewozu pasażerskiego (szt.)",null,null,null,null,null,null,null,null,null,"a4.Liczba zakupionych /zmodernizowanych jednostek taboru przewozu pasażerskiego (szt.)","b4.Liczba wybudowanych /zmodernizowanych przejść dla pieszych (szt.)","c4.Pojemność widowni / trybun: teatr / amfiteatr / muszla koncertowa / sala widowiskowa / stadion  / obiekt sportowy (osoby)","d4.Powierzchnia nowego / modernizowanego parku / skweru / ogrodu / wałów przeciwpowodziowych / terenów nadbrzeżnych / terenów zielonych itp. (m2)"]
["5. Sprzęt i wyposażenie","1.5 Pojemność jednostek zakupionego taboru komunikacji miejskiej (osoby)",null,null,null,null,null,null,null,null,null,"a5.Pojemność jednostek zakupionego taboru komunikacji miejskiej (osoby)","b5.Liczba wybudowanych/zmodernizowanych skrzyżowań (szt.)","c5.Powierzchnia ekspozycji: księgozbioru / wystawy / przestrzeni targowej / handlowej (m2)","c5.Liczba nowych / zmodernizowanych obiektów małej architektury / poboru wody oligoceńskiej / punktów monitoringu wizyjnego / innych (szt.)"]
["6. Temomodernizacja","1.6 Liczba wybudowanych/zmodernizowanych przystanków komunikacji miejskiej (szt.)",null,null,null,null,null,null,null,null,null,"a6.Liczba wybudowanych/zmodernizowanych przystanków komunikacji miejskiej (szt.)","b6.Długość kładki dla pieszych / pieszo-rowerowej / mostu / tunelu / wiaduktu (m)","c6.Powierzchnia rekreacyjna basenu / boiska / hali sportowej / placu zabaw itp. (m2)","c6.inny - wskazany  przez Wnioskodawcę w kolumnie obok"]
["7. Inne","1.7 Liczba wybudowanych / zmodernizowanych zatok autobusowych (szt.)",null,null,null,null,null,null,null,null,null,"a7.Liczba wybudowanych / zmodernizowanych zatok autobusowych (szt.)","b7.Liczba nowych / zmodernizowanych punkótw świetlnych, oświetlenia ulic (szt.)","c7.Liczba planowanych do budowy oddziałów szkolnych / przedszkolnych / żłobkowych / szpitalnych  (szt.)"]
[null,"2.1 Długość wybudowanych/przebudowanych dróg (m)",null,null,null,null,null,null,null,null,null,null,"b8.Liczba wybudowanych systemów sygnalizacji ulicznej (szt.)","c8.Liczba pomieszczeń: centra przedsiębiorczości / lokalne / izby pamięci / obiekty administracji publicznej / inne (szt.)"]
[null,"2.2 Długość wybudowanych/zmodernizowanych ścieżek rowerowych (m)",null,null,null,null,null,null,null,null,null,null,"b9.Liczba nowych / zmodernizowanych miejsc postojowych: przy ulicy / P&R / parking naziemny / parking podziemny (szt.)","c9.Liczba uczniów w szkole / przedszkolu / żłobku (osoby)"]
[null,"2.3 Długość wybudowanych/przebudowanych chodników (m)",null,null,null,null,null,null,null,null,null,null,null,"c10.Liczba łóżek w szpitalu / oddziale szpitalnym (szt.)"]
[null,"2.4 Liczba wybudowanych /zmodernizowanych przejść dla pieszych (szt.)",null,null,null,null,null,null,null,null,null,null,null,"c11.Liczba mieszkańców / podopiecznych korzysztających z: DPS / placówka opiekuńcza / dzienna lub inna w zakresie opieki społecznej (osoby)"]
[null,"2.5 Liczba wybudowanych/zmodernizowanych skrzyżowań (szt.)",null,null,null,null,null,null,null,null,null,null,null,"c12.Liczba mieszkań w budynku komunalnym (szt.)"]
[null,"2.6 Długość kładki dla pieszych / pieszo-rowerowej / mostu / tunelu / wiaduktu (m)",null,null,null,null,null,null,null,null,null,null,null,"c13.Liczba korzystających z placówki sportowej / rekreacyjnej / kulturalnej (osoby/rok)"]
[null,"2.7 Liczba nowych / zmodernizowanych punkótw świetlnych, oświetlenia ulic (szt.)"]
[null,"2.8 Liczba wybudowanych systemów sygnalizacji ulicznej (szt.)"]
[null,"2.9 Liczba nowych / zmodernizowanych miejsc postojowych: przy ulicy / P&R / parking naziemny / parking podziemny (szt.)"]
[null,"3.1 Liczba wybudowanych / zmodernizowanych obiektów kubaturowych (szt.)"]
[null,"3.2 Kubatura wybudowanych / zmodernizowanych obiektów (m2)"]
[null,"3.3 Powierzchnia całkowita wybudowanych/zmodernizowanych obiektów (m2)"]
[null,"3.4 Pojemność widowni / trybun: tetatr / amfiteatr / muszla koncertowa / sala widowiskowa / stadion  / obiekt sportowy (osoby)"]
[null,"3.5 Powierzchnia ekspozycji: księgozbioru / wystawy / przestrzeni targowej / handlowej (m2)"]
[null,"3.6 Powierzchnia rekreacyjna basenu / boiska / hali sportowej / placu zabaw itp. (m2)"]
[null,"3.7 Liczba planowanych do budowy oddziałów szkolnych / przedszkolnych / żłobkowych / szpitalnych  (szt.)"]
[null,"3.8 Liczba pomieszczeń: centra przedsiębiorczości / lokalne / izby pamięci / obiekty administracji publicznej / inne (szt.)"]
[null,"3.9 Liczba uczniów w szkole / przedszkolu / żłobku (osoby)"]
[null,"3.10 Liczba łóżek w szpitalu / oddziale szpitalnym (szt.)"]
[null,"3.11 Liczba mieszkańców / podopiecznych korzysztających z: DPS / placówka opiekuńcza / dzienna lub inna w zakresie opieki społecznej (osoby)"]
[null,"3.12 Liczba mieszkań w budynku komunalnym (szt.)"]
[null,"3.13 Liczba korzystających z placówki sportowej / rekreacyjnej / kulturalnej (osoby/rok)"]
[null,"4.1 Długość wybudowanej / zmodernizowanej sieci infrastruktury technicznej: wodociągi, kanalizacja itp. (m)"]
[null,"4.2 Liczba odbiorców wybudowanej / zmodernizowanej sieci infrastruktury technicznej: wodociągi, kanalizacja itp. (osoby)"]
[null,"4.3 Liczba osób korzystających z: punktów ładowania pojazdów / studni oligoceńskiej / systemów informatycznych / urządzeń dźwigowych itp. (osoby/rok) "]
[null,"4.4 Powierzchnia nowego / modernizowanego parku / skweru / ogrodu / wałów przeciwpowodziowych / terenów nadbrzeżnych / terenów zielonych itp. (m2)"]
[null,"4.5 Liczba nowych / zmodernizowanych obiektów małej architektury / poboru wody oligoceńskiej / punktów monitoringu wizyjnego / innych (szt.)"]
[null,"inny - wskazany  przez Wnioskodawcę w kolumnie obok"]
[null,"5.1 Liczba zakupionego sprzetu (szt.)"]
[null,"5.2 Powierzchnia wykupionego / pozyskanego gruntu / nieruchomości (m2)"]
[null,"6.1 Ilość zaoszczędzonej energii w wyniku realizacji projektów termomodernizacyjnych (GJ/rok)"]
[null,"7. Inny - charkterystyczny dla projektu, opis w dodatkowych informacjach"]